[Event "26th Hit Open-A 2022"]
[Site "Nova Gorica"]
[Date "2022.09.21"]
[Round "8.14"]
[White "Pavlovic, Milos"]
[Black "Acimovic, Vasja"]
[Result "1/2-1/2"]
[ECO "D30"]
[WhiteElo "2468"]
[BlackElo "2237"]
[Annotator "TA"]
[PlyCount "108"]
[EventDate "2022.09.16"]
[EventType "swiss"]
[EventCountry "SLO"]
[SourceTitle "playchess.com"]
[Source "ChessBase"]
[SourceQuality "1"]
[TimeControl "5400+30"]

{[%evp 9,108,24,17,17,17,22,25,32,22,6,9,6,25,19,15,8,12,4,50,35,39,41,54,59,52,46,87,42,43,43,43,48,45,32,37,39,42,41,40,33,31,29,47,54,55,66,50,48,43,29,81,60,81,43,49,31,50,49,75,44,46,-20,-20,-20,-19,-60,-63,-50,-6,-11,-5,-6,0,0,0,-31,-21,-31,0,0,0,0,0,0,0,0,0,0,0,0,0,0,0,0,0,0,0,0,0,0,0]} 1. d4 {[%emt 0:00:28]} d5 {[%emt 0:00:07]} 2. c4 {[%emt 0:00:47]} c6 {[%emt 0:00:55]} 3. Nf3 {[%emt 0:00:08]} Nf6 {[%emt 0:00:05]} 4. e3 {[%emt 0:00:16]} e6 {[%emt 0:00:54]} 5. Bd3 {[%emt 0:02:19]} Bd6 {[%emt 0:00:16]} 6. b3 {[%emt 0:02:19] D30: Queen's Gambit Declined: Systems without Nc3.} O-O {[%emt 0:00:09] 6...0-0 is better than 6...Nbd7.} 7. O-O {[%emt 0:00:10]} b6 {[%emt 0:01:08]} 8. Bb2 {[%emt 0:00:07] White has an edge.} Bb7 {[%emt 0:00:06]} 9. Nc3 {[%emt 0:07:13]} Nbd7 {[%emt 0:00:27]} 10. Qe2 {[%emt 0:06:19]} c5 {[%emt 0:07:55]} 11. cxd5 {[%emt 0:00:48]} exd5 {[%emt 0:00:35]} 12. Rfd1 {[%emt 0:01:14]} Re8 {[%emt 0:05:15]} 13. Rac1 {[%emt 0:04:50]} Qe7 {[%emt 0:17:39]} (13... a6 $11) 14. Ba6 {[%emt 0:03:41]} Bxa6 {[%emt 0:15:24]} 15. Qxa6 {[%emt 0:01:18]} Rad8 {[%emt 0:13:55] [#]} 16. dxc5 $146 {[%emt 0:22:59]} ({Predecessor:} 16. Ba3 Qe6 17. Nb5 Ne4 18. Nxd6 Qxd6 19. dxc5 Ndxc5 20. Qe2 Qg6 21. Bb2 Ng5 22. Nxg5 Qxg5 {1-0 (43) Halkias,S (2530)-Vezzosi,P (2244) Arco 2019}) 16... Nxc5 {[%emt 0:00:19]} 17. Qe2 {[%emt 0:00:14]} Bb8 {[%emt 0:00:41]} 18. g3 {[%emt 0:12:23]} Qb7 {[%emt 0:06:41]} 19. Nb5 {[%emt 0:06:28][%cal Bc3b5,Bb5d4,Bd4e2,Be2f4][%mdl 32]} Nce4 {[%emt 0:02:58]} 20. Bxf6 {[%emt 0:00:07]} Nxf6 {[%emt 0:00:05]} 21. Rc2 {[%emt 0:00:05]} Rc8 {[%emt 0:01:41]} 22. Rdc1 {[%emt 0:00:10]} a6 {[%emt 0:00:45]} 23. Nbd4 {[%emt 0:00:02]} Bd6 {[%emt 0:00:49]} 24. Qd3 {[%emt 0:05:33]} g6 {[%emt 0:02:23]} 25. Ne2 {[%emt 0:04:06] Pair of Knights!} Ba3 {[%emt 0:07:00]} 26. Rxc8 {[%emt 0:00:20]} Rxc8 {[%emt 0:00:04]} 27. Rxc8+ {[%emt 0:10:01]} Qxc8 {[%emt 0:00:26]} 28. Nf4 {[%emt 0:00:04]} Qb7 {[%emt 0:02:06]} 29. h3 {[%emt 0:02:12]} Bd6 {[%emt 0:00:48]} (29... Bc5 $11) 30. Qd4 $16 {[%emt 0:00:08]} Be7 {[%emt 0:03:05]} 31. g4 {[%emt 0:00:38] White is much more active.} h6 {[%emt 0:01:35]} 32. Ne5 {[%emt 0:00:32]} g5 {[%emt 0:02:14] [#] aiming for ...Bc5.} 33. Ne2 {[%emt 0:01:51]} Bc5 {[%emt 0:00:37]} 34. Qd3 {[%emt 0:00:53]} Qc8 {[%emt 0:02:02]} 35. Ng3 {[%emt 0:00:25]} (35. Qc3 $14) 35... Bd6 $11 {[%emt 0:00:33]} 36. Qd4 {[%emt 0:02:29]} Qe6 $1 $36 {[%emt 0:01:30][%mdl 2048] Black is more active.} 37. Nd3 {[%emt 0:01:16]} Bxg3 {[%emt 0:00:06]} 38. fxg3 $15 {[%emt 0:00:02][%mdl 4096] Endgame KQN-KQN} Qc6 {[%emt 0:02:24]} (38... Ne4 {keeps more tension.} 39. Kg2 Qc6 40. Kf3 Qb5) 39. Nf2 {[%emt 0:02:14]} Ne4 {[%emt 0:02:03]} 40. Nxe4 {[%emt 0:00:05]} dxe4 $11 {[%emt 0:00:03] KQ-KQ} 41. Qd2 {[%emt 0:02:09]} Qf6 {[%emt 0:00:38]} 42. Qf2 {[%emt 0:01:07]} Qa1+ {[%emt 0:01:33]} 43. Kh2 {[%emt 0:00:01]} Kg7 {[%emt 0:00:44]} 44. Qc2 {[%emt 0:00:32] The position is equal.} Qe5 {[%emt 0:00:50]} 45. a4 {[%emt 0:00:01]} b5 {[%emt 0:00:24]} 46. axb5 {[%emt 0:01:42]} axb5 {[%emt 0:00:01]} 47. Kg2 {[%emt 0:00:31]} b4 {[%emt 0:00:18]} 48. h4 {[%emt 0:00:29]} Qc3 {[%emt 0:01:13]} 49. Qxe4 {[%emt 0:00:07]} Qxb3 {[%emt 0:00:02] Threatens to win with ...Qb2+.} 50. Qe5+ {[%emt 0:00:10]} Kh7 {[%emt 0:01:01] [#] ...Qc2+ is the strong threat.} 51. Qe4+ {[%emt 0:00:26]} Kg7 {[%emt 0:00:26]} 52. Qe5+ {[%emt 0:00:05]} Kh7 {[%emt 0:00:15] White must now prevent ...Qc2+.} 53. Qe4+ {[%emt 0:01:06]} Kg7 {[%emt 0:00:08] Strongly threatening ...Qb2+.} 54. Qe5+ {[%emt 0:00:05]} Kh7 {[%emt 0:00:05] Weighted Error Value: White=0.09 (flawless) /Black=0.08 (flawless)} 1/2-1/2

[Event "26th Hit Open-A 2022"]
[Site "Nova Gorica"]
[Date "2022.09.21"]
[Round "8.15"]
[White "Thavandiran, Shiyam"]
[Black "Guid, Matej"]
[Result "1-0"]
[ECO "C01"]
[WhiteElo "2363"]
[BlackElo "2292"]
[Annotator "TA"]
[PlyCount "112"]
[EventDate "2022.09.16"]
[EventType "swiss"]
[EventCountry "SLO"]
[SourceTitle "playchess.com"]
[Source "ChessBase"]
[SourceQuality "1"]
[TimeControl "5400+30"]

{[%evp 12,112,23,15,14,14,11,10,68,72,73,68,66,75,82,84,68,80,77,65,68,60,58,45,52,34,48,34,76,54,75,76,80,84,78,72,102,102,116,116,114,116,134,135,120,116,178,179,179,145,175,164,218,216,210,206,215,193,339,327,325,335,276,287,387,333,533,530,533,525,740,740,710,659,1271,1364,1197,1152,1726,1397,1476,983,4137,4137,4137,2072,29971,29959,11869,4137,29978,29975,29981,29981,29983,29984,29984,29983,29983,29984,29984,29984,29984]} 1. e4 {[%emt 0:00:56]} e6 {[%emt 0:00:05]} 2. d4 {[%emt 0:00:23]} d5 {[%emt 0:00:06]} 3. exd5 {[%emt 0:00:10]} exd5 {[%emt 0:00:07]} 4. Nf3 {[%emt 0:00:07]} Bd6 {[%emt 0:01:39]} 5. Bd3 {[%emt 0:00:38]} Nc6 {[%emt 0:00:24]} 6. c3 {[%emt 0:00:11]} Nge7 {[%emt 0:00:04]} 7. O-O {[%emt 0:00:21]} Bf5 {[%emt 0:00:05] C01: French: Exchange Variation.} 8. Bxf5 {[%emt 0:03:59]} Nxf5 {[%emt 0:00:07]} 9. Qb3 {[%emt 0:01:50] [#]} O-O $146 {[%emt 0:06:23]} ({Black should try} 9... b6 $11) ({Predecessor:} 9... Nfe7 10. Qxb7 O-O 11. Qa6 Rb8 12. Nbd2 Qd7 13. Re1 Ng6 14. Nb3 Rb6 15. Qd3 Qg4 {1-0 (32) Moskalenko,A (2522)-Roenko,A (2167) Katowice 2017}) 10. Qxb7 $14 {[%emt 0:00:37]} Qd7 {[%emt 0:18:31]} 11. Qb5 {[%emt 0:21:09]} Rab8 {[%emt 0:07:31]} 12. Qd3 {[%emt 0:01:01]} Rfe8 {[%emt 0:00:31]} 13. Nbd2 {[%emt 0:00:28]} f6 {[%emt 0:06:16]} 14. b3 {[%emt 0:19:07]} g5 {[%emt 0:15:06]} 15. Bb2 {[%emt 0:00:26]} Nce7 {[%emt 0:02:13]} 16. Ne1 {[%emt 0:07:38]} Ng6 {[%emt 0:01:27] [#] Threatens to win with ...Nf4.} 17. g3 {[%emt 0:01:46] Prevents Nf4.} Nfh4 {[%emt 0:02:47][%cal Od7h3]} 18. Kh1 $1 {[%emt 0:09:27]} (18. gxh4 Nf4 19. Qf3 Re2 $15) 18... Qh3 {[%emt 0:06:58][%cal Oe8e1] ( -> ...Rxe1!)} 19. Rg1 {[%emt 0:00:20]} Re6 {[%emt 0:04:31][%cal Ob8e8]} 20. Qf1 {[%emt 0:10:01]} Qxf1 {[%emt 0:00:41]} 21. Rxf1 {[%emt 0:00:59] White now steadily converts the win.} Re2 {[%emt 0:09:30]} 22. Rd1 {[%emt 0:01:20]} Nf5 {[%emt 0:01:10]} 23. Nd3 $36 {[%emt 0:00:19][%mdl 2048] White is in control.} Rbe8 {[%emt 0:04:51]} 24. Rfe1 {[%emt 0:00:37]} Rxe1+ {[%emt 0:03:51]} 25. Rxe1 {[%emt 0:00:28]} Rxe1+ {[%emt 0:00:04]} 26. Nxe1 {[%emt 0:00:02]} c5 {[%emt 0:00:07]} 27. dxc5 {[%emt 0:00:50]} Bxc5 {[%emt 0:00:01]} 28. Nd3 {[%emt 0:00:09]} Bb6 {[%emt 0:00:31]} (28... Be7 $16 {was necessary.} 29. c4 dxc4 30. bxc4 (30. Nxc4 Kf7 $16) 30... Kf7) 29. c4 $18 {[%emt 0:00:38]} dxc4 {[%emt 0:00:49]} 30. Nxc4 {[%emt 0:00:23]} Bd8 {[%emt 0:00:12]} 31. Kg2 {[%emt 0:05:26]} g4 {[%emt 0:00:23]} (31... Kf7 {was worth a try.} 32. Kf3 h5) 32. f3 {[%emt 0:01:40]} gxf3+ {[%emt 0:00:53]} 33. Kxf3 {[%emt 0:00:03]} Kf7 {[%emt 0:01:16]} 34. Ke4 {[%emt 0:03:05]} Nge7 {[%emt 0:02:30]} (34... Nfe7 $142 35. b4 Bc7) 35. Nf4 {[%emt 0:03:57]} Bc7 {[%emt 0:04:14]} 36. Nh5 {[%emt 0:00:36]} Kg6 {[%emt 0:00:57]} 37. Nxf6 {[%emt 0:00:23]} h5 {[%emt 0:00:12]} 38. Nd7 {[%emt 0:03:04]} Nxg3+ $2 {[%emt 0:00:40]} (38... Kf7 39. Nce5+ Ke6 40. Nc5+ Kf6 41. Ned3+ Kf7) 39. hxg3 {[%emt 0:00:05]} Bxg3 {[%emt 0:00:04]} 40. Nce5+ {[%emt 0:03:39]} Kg5 {[%emt 0:00:24]} 41. Bc1+ {[%emt 0:00:24]} Kh4 {[%emt 0:00:17]} 42. Nf6 {[%emt 0:00:40]} Bxe5 {[%emt 0:01:58]} 43. Kxe5 {[%emt 0:00:07]} Nc6+ {[%emt 0:00:28]} 44. Kd6 {[%emt 0:00:51]} Nd4 {[%emt 0:00:18]} 45. Kc5 {[%emt 0:00:38]} Ne2 {[%emt 0:00:56]} 46. Bd2 {[%emt 0:00:04] Be3 is the strong threat.} Kg3 {[%emt 0:00:36]} 47. Nxh5+ {[%emt 0:00:18]} Kg4 {[%emt 0:00:01] [#]} 48. Nf4 $1 {[%emt 0:00:27]} Ng1 {[%emt 0:00:33]} (48... Ng3 49. Kd5) 49. Kb5 {[%emt 0:02:06]} Nf3 {[%emt 0:00:22]} 50. Be3 {[%emt 0:00:12] Intending Nd5 and mate.} Ne5 {[%emt 0:00:22]} 51. Nd5 {[%emt 0:00:10] White mates.} Nd3 {[%emt 0:00:13]} 52. Bxa7 {[%emt 0:00:11]} Nc1 {[%emt 0:00:07]} 53. Be3 {[%emt 0:01:02]} Nxa2 {[%emt 0:00:07]} 54. Ka4 {[%emt 0:00:03]} Kf3 {[%emt 0:00:16]} 55. Ka3 {[%emt 0:00:01]} Ke4 {[%emt 0:00:16]} 56. Kxa2 {[%emt 0:00:06]} Kxd5 {[%emt 0:00:14] Weighted Error Value: White=0.03 (flawless) /Black=0.28 (precise)} 1-0

[Event "26th Hit Open-A 2022"]
[Site "Nova Gorica"]
[Date "2022.09.21"]
[Round "8.16"]
[White "Herega, Nejc"]
[Black "Tisaj, Domen"]
[Result "0-1"]
[ECO "A47"]
[WhiteElo "2146"]
[BlackElo "2325"]
[Annotator "TA"]
[PlyCount "120"]
[EventDate "2022.09.16"]
[EventType "swiss"]
[EventCountry "SLO"]
[SourceTitle "playchess.com"]
[Source "ChessBase"]
[SourceQuality "1"]
[TimeControl "5400+30"]

{[%evp 20,120,21,18,27,18,27,23,36,0,0,-7,-8,0,0,-9,0,4,0,-7,11,10,32,-7,0,-8,16,10,12,12,24,8,31,0,23,10,0,14,12,-5,-5,-7,-3,-6,-3,-10,-10,-10,-10,-12,-12,-41,-31,-31,-30,-41,-41,-41,-41,-41,-41,-69,-69,-69,-69,-72,-56,-56,-56,-139,-141,-127,-113,-107,-107,-118,-42,-113,-112,-112,-28,-197,-209,-243,-229,-219,-229,-222,-238,-651,-644,-605,-589,-755,-727,-2234,-2152,-29974,-29975,-29980,-29981,-29980,-29981]} 1. d4 {[%emt 0:00:06]} Nf6 {[%emt 0:00:06]} 2. Nf3 {[%emt 0:00:08]} e6 {[%emt 0:00:36]} 3. Bf4 {[%emt 0:00:14]} b6 {[%emt 0:02:04]} 4. e3 {[%emt 0:01:05]} Bb7 {[%emt 0:00:15]} 5. Nbd2 {[%emt 0:01:32]} c5 {[%emt 0:00:51]} 6. c3 {[%emt 0:02:02]} Be7 {[%emt 0:00:36]} 7. h3 {[%emt 0:07:49]} O-O {[%emt 0:00:25]} 8. Bd3 {[%emt 0:01:13]} d6 {[%emt 0:01:20]} 9. O-O {[%emt 0:03:58]} cxd4 {[%emt 0:00:50]} 10. exd4 {[%emt 0:02:14]} Nbd7 {[%emt 0:00:22]} 11. Qe2 {[%emt 0:02:49]} a6 {[%emt 0:00:38] A47: 1 d4 Nf6 2 Nf3 b6: Torre, London and Colle Systems.} 12. a4 {[%emt 0:03:57]} Re8 {[%emt 0:00:27]} 13. Bh2 {[%emt 0:01:57]} Qc7 {[%emt 0:01:52] White has an edge.} 14. Ng5 {[%emt 0:07:07] [#]} Qc6 $146 {[%emt 0:01:48][%csl Gb7][%cal Rc6g2]} ({Predecessor:} 14... Nf8 15. Nge4 Nd5 16. c4 Nb4 17. c5 Nxd3 18. Qxd3 e5 19. dxe5 dxe5 20. cxb6 Qxb6 21. Bxe5 {½-½ (72) Sielaff,M-Cladouras,P (2360) Dresden 1998}) 15. f4 {[%emt 0:02:04]} Bf8 {[%emt 0:01:58]} 16. Qf3 {[%emt 0:02:33]} Qxf3 {[%emt 0:03:59]} 17. Ngxf3 {[%emt 0:00:54]} h5 {[%emt 0:05:49]} 18. Rfe1 {[%emt 0:04:14]} g6 {[%emt 0:00:46]} 19. Kf2 {[%emt 0:03:00]} Bh6 {[%emt 0:02:51]} 20. Nc4 {[%emt 0:04:28]} Bf8 {[%emt 0:05:30]} 21. Ne3 {[%emt 0:05:08]} Ne4+ {[%emt 0:02:32]} 22. Ke2 {[%emt 0:02:10]} Rac8 {[%emt 0:01:58]} 23. g4 {[%emt 0:01:28]} hxg4 {[%emt 0:00:27]} 24. hxg4 {[%emt 0:00:51]} Bg7 {[%emt 0:03:28]} 25. Nc4 {[%emt 0:02:58] Bxe4 is the strong threat.} Bf8 {[%emt 0:01:45]} 26. Ne3 {[%emt 0:00:37]} Ndf6 {[%emt 0:15:43]} 27. Nd2 {[%emt 0:02:51]} Nxd2 {[%emt 0:01:15]} 28. Kxd2 {[%emt 0:00:08]} Ne4+ {[%emt 0:00:48]} 29. Bxe4 {[%emt 0:05:02]} Bxe4 {[%emt 0:00:31]} 30. g5 {[%emt 0:01:33]} Bf3 {[%emt 0:07:10][%cal Be4f3,Bf3h5,Bh5g4][%mdl 32] Inhibits Ng4.} 31. Rf1 {[%emt 0:01:37]} Bh5 {[%emt 0:00:14]} 32. Nc2 {[%emt 0:02:39]} d5 {[%emt 0:00:23]} 33. a5 {[%emt 0:01:04]} b5 {[%emt 0:00:48]} 34. Rac1 {[%emt 0:02:41]} Bg4 {[%emt 0:00:30]} 35. Bg1 {[%emt 0:01:32]} Bd6 {[%emt 0:01:02]} 36. Nb4 {[%emt 0:01:06]} Ra8 {[%emt 0:00:37]} 37. Be3 {[%emt 0:00:43]} Bf5 {[%emt 0:00:15]} 38. Nd3 {[%emt 0:01:07]} Bxd3 {[%emt 0:02:37]} 39. Kxd3 {[%emt 0:00:05]} Kg7 {[%emt 0:01:29]} 40. b4 {[%emt 0:02:56]} Rh8 {[%emt 0:00:33]} 41. Rh1 {[%emt 0:00:34]} Rh5 {[%emt 0:01:00]} 42. Rxh5 {[%emt 0:02:06]} gxh5 $15 {[%emt 0:00:54][%mdl 4096] Endgame KRB-KRB} 43. Rh1 {[%emt 0:00:38]} Rh8 {[%emt 0:00:17]} 44. Rh4 {[%emt 0:00:40]} (44. Ke2 $1 $15) 44... Kg6 $17 {[%emt 0:00:08]} 45. Ke2 {[%emt 0:01:00]} Kf5 {[%emt 0:01:07]} 46. Kf3 {[%emt 0:00:13]} Be7 $1 {[%emt 0:00:18]} 47. Rh1 {[%emt 0:04:17] [#]} f6 {[%emt 0:05:21]} ({Better is} 47... h4 $1 $17 48. Bd2 h3) 48. Kg3 {[%emt 0:04:02]} (48. Rg1 $15) 48... fxg5 {[%emt 0:05:30]} 49. fxg5 {[%emt 0:00:52]} Kg6 {[%emt 0:01:22]} (49... Bxg5 $17 50. Bxg5 Kxg5) 50. Bf4 {[%emt 0:01:47] Now White is beyond hope.} (50. Re1 $11) 50... Rc8 $19 {[%emt 0:02:53]} ({And not} 50... Bxg5 51. Bxg5 Kxg5 52. Re1 $17) 51. Re1 {[%emt 0:01:02]} Rxc3+ {[%emt 0:00:34]} 52. Kh4 {[%emt 0:00:23]} Rc6 {[%emt 0:00:19]} ({Much less strong is} 52... Bxb4 53. Rxe6+ Kf5 54. Rf6+ Ke4 55. Bd2 $18) 53. Bd2 {[%emt 0:00:43]} Bf8 {[%emt 0:00:19] Hoping for ...Bg7.} 54. Re2 $2 {[%emt 0:03:36] [#]} (54. Bc3) 54... Bg7 $1 {[%emt 0:00:39]} 55. Be3 {[%emt 0:00:10]} Rc4 {[%emt 0:00:13][%csl LRb4,LRd4]} 56. Kh3 {[%emt 0:01:12]} e5 {[%emt 0:02:05]} 57. dxe5 {[%emt 0:00:28]} Re4 {[%emt 0:00:07] ( -> ...d4)} 58. Re1 {[%emt 0:01:32]} Bxe5 {[%emt 0:00:12] Black mates.} 59. Bd2 {[%emt 0:02:29]} Rxe1 {[%emt 0:00:09]} 60. Bxe1 {[%emt 0:00:03]} Kxg5 {[%emt 0:00:06] Weighted Error Value: White=0.48/Black=0.07 (flawless)} 0-1

[Event "26th Hit Open-A 2022"]
[Site "Nova Gorica"]
[Date "2022.09.21"]
[Round "8.17"]
[White "Rakesh Kumar Jena"]
[Black "Saypuri Srithan"]
[Result "0-1"]
[ECO "C26"]
[WhiteElo "2321"]
[BlackElo "2199"]
[Annotator "TA"]
[PlyCount "104"]
[EventDate "2022.09.16"]
[EventType "swiss"]
[EventCountry "SLO"]
[SourceTitle "playchess.com"]
[Source "ChessBase"]
[SourceQuality "1"]
[TimeControl "5400+30"]

{[%evp 20,104,22,-4,0,0,18,21,20,17,2,-4,4,0,0,0,0,0,0,0,0,-90,-100,-46,-70,-56,-42,-152,-176,-272,-271,-282,-275,-269,-267,-258,-264,-276,-262,-294,-236,-252,-155,-216,-224,-478,-472,-653,-634,-679,-673,-671,-667,-611,-643,-607,-333,-734,-721,-721,-718,-700,-689,-808,-791,-1491,-1429,-4690,-3161,-4706,-2552,-1251,-922,-804,-817,-2477,-1833,-2697,-2479,-29985,-29985,-29985,-29986,-29994,-29993,-29993,-29994]} 1. e4 {[%emt 0:14:27]} e5 {[%emt 0:00:24]} 2. Nf3 {[%emt 0:00:16]} Nf6 {[%emt 0:00:05]} 3. d3 {[%emt 0:01:04]} Nc6 {[%emt 0:04:55]} 4. g3 {[%emt 0:01:19]} Bc5 {[%emt 0:07:36]} 5. Bg2 {[%emt 0:00:12]} d6 {[%emt 0:00:57]} 6. O-O {[%emt 0:00:55]} O-O {[%emt 0:13:49]} 7. Nc3 {[%emt 0:02:40]} h6 {[%emt 0:05:19]} 8. h3 {[%emt 0:06:18]} Be6 {[%emt 0:02:23]} 9. Na4 {[%emt 0:05:34]} Bb6 {[%emt 0:01:01]} 10. Nxb6 {[%emt 0:11:05]} axb6 {[%emt 0:00:05]} 11. c4 {[%emt 0:00:09]} Qd7 {[%emt 0:25:35] C26: Vienna Game: 2...Nf6, sidelines .} 12. Kh2 {[%emt 0:06:21]} Nh7 {[%emt 0:03:09]} 13. b3 {[%emt 0:20:08]} f5 {[%emt 0:07:25] The position is equal.} 14. exf5 {[%emt 0:00:50]} Bxf5 {[%emt 0:01:35]} 15. d4 {[%emt 0:03:00] [#]} e4 $146 {[%emt 0:02:26]} ({Predecessor:} 15... Rfd8 16. Bb2 exd4 17. Nxd4 Nxd4 18. Qxd4 Rab8 19. Bd5+ Kh8 20. Qh4 Ng5 21. Qxh6+ Nh7 22. Rae1 Bd3 23. Be6 Qe7 24. Bf5 Qg5 25. Qxh7# {1-0 (25) Jacob,R (1940)-Celkevicius,A Sao Paulo 2005}) 16. Nh4 {[%emt 0:07:45]} d5 {[%emt 0:02:22]} 17. Be3 {[%emt 0:11:40]} Nf6 {[%emt 0:04:37]} 18. Nxf5 {[%emt 0:01:36]} Qxf5 {[%emt 0:00:05]} 19. f3 {[%emt 0:01:09] [#] aiming for fxe4.} Qg6 {[%emt 0:04:00]} 20. f4 {[%emt 0:03:23]} (20. Bf4 $11 {keeps the balance.}) 20... dxc4 $17 {[%emt 0:01:10]} 21. bxc4 {[%emt 0:00:33]} Ra3 {[%emt 0:00:07][%cal Ba8a3,Ba3c3,Bc3c4][%mdl 32]} 22. Qe1 {[%emt 0:00:15]} Nb4 {[%emt 0:01:45]} 23. Bc1 {[%emt 0:00:34] Black converts the advantage convincingly.} (23. Qxb4 $15 Rxe3 24. g4) 23... Nd3 {[%emt 0:02:59] Black has more active pieces.} ({Don't play} 23... Rxa2 24. Rxa2 Nxa2 25. Ba3 $16) 24. Qe3 {[%emt 0:00:40]} (24. f5 $142 Qf7 25. Qd2 Nxc1 26. Raxc1) 24... Rc3 $19 {[%emt 0:00:00]} 25. g4 {[%emt 0:00:34]} Rxc4 {[%emt 0:00:19]} 26. f5 {[%emt 0:00:30]} Qe8 {[%emt 0:00:05]} 27. Qg3 {[%emt 0:00:16]} c5 {[%emt 0:00:23]} 28. dxc5 {[%emt 0:00:30]} bxc5 {[%emt 0:00:07]} ({And not} 28... Nxc1 29. Raxc1 Rxc5 30. Rb1 $17) 29. Bf4 {[%emt 0:00:43]} Nxf4 {[%emt 0:00:49]} 30. Rxf4 {[%emt 0:00:04]} Qe5 {[%emt 0:00:11]} 31. Re1 {[%emt 0:00:40]} (31. Rff1 $17 Qxg3+ 32. Kxg3) 31... Ra8 {[%emt 0:01:50][%cal Bf8a8,Ba8a4,Ba4b4][%mdl 32]} 32. Kh1 $2 {[%emt 0:00:44]} (32. Rf2 Qd4 33. Qe3) 32... Rc3 {[%emt 0:03:01]} 33. Qf2 {[%emt 0:00:11]} Ra4 {[%emt 0:00:39]} 34. Qd2 {[%emt 0:00:40]} Kh7 {[%emt 0:01:01] And now ...e3 would win.} 35. Rff1 {[%emt 0:00:43]} e3 {[%emt 0:01:24]} 36. Qb2 {[%emt 0:00:26]} Rb4 {[%emt 0:00:14]} 37. Qe2 {[%emt 0:00:30]} b5 {[%emt 0:01:49][%cal Bb7b5,Bb5b4][%mdl 32]} 38. Kg1 $2 {[%emt 0:00:34]} (38. Rf3 Re4 39. Rff1) 38... Ra3 {[%emt 0:01:05] Threatens to win with ...Rb2.} 39. Rb1 {[%emt 0:00:28] Prevents Rb2.} Rxb1 {[%emt 0:00:40]} 40. Rxb1 {[%emt 0:00:01]} b4 {[%emt 0:00:04]} 41. Rd1 {[%emt 0:00:43]} Rc3 {[%emt 0:00:42]} 42. h4 {[%emt 0:00:45]} Qg3 {[%emt 0:01:07][%csl LRg4,LRh4]} 43. g5 {[%emt 0:00:22]} hxg5 {[%emt 0:00:22]} 44. hxg5 {[%emt 0:00:02]} Ng4 {[%emt 0:00:59]} 45. f6 {[%emt 0:00:58]} Qf2+ {[%emt 0:00:50]} 46. Qxf2 {[%emt 0:00:36]} exf2+ {[%emt 0:00:04][%mdl 4096] Endgame KRB-KRN} 47. Kh1 {[%emt 0:00:34]} gxf6 {[%emt 0:00:04] White must now prevent ...Kg6.} 48. Be4+ {[%emt 0:00:04]} Kg7 {[%emt 0:00:02] ( -> ...Ne3)} 49. g6 {[%emt 0:00:45]} Re3 {[%emt 0:01:18] Black mates.} 50. Rd7+ {[%emt 0:00:21]} Kh6 {[%emt 0:00:04][%cal Rf2f1]} 51. Rh7+ {[%emt 0:00:07]} Kg5 {[%emt 0:00:03][%cal Rf2f1]} 52. Kg2 {[%emt 0:00:38] [#]} Rg3+ $3 {[%emt 0:00:29][%mdl 512] Weighted Error Value: White=1.09/Black=0.31} 0-1